Cogmind - Beta 15 @@@ ROGUE MODE // 2025.07.11 @ 13:21:58 Player: jumpy Result: Destroyed by B-75 Beast with Heavy Plasma Cannon Performance ------------- Evolutions (4) 2000 Regions Visited (10) 2000 Robots Destroyed (44) 220 Value Destroyed (1281) 1281 Prototype IDs (27) 540 Alien Tech Used (0) 0 Bonus (500) 500 TOTAL SCORE: 6541 Bonus ------- Entered Garrisons 200 Aligned with FarCom 300 Cogmind --------- Core Integrity 0/850 Matter 187/300 Energy 85/100 System Corruption 1% Temperature Cool (12) Movement Core (1500) Ox29 Location -6/Factory Parts ------- > --- POWER (1) -------- (None) > --- PROPULSION (6) --- (None) > --- UTILITY (6) ------ Huge Storage Unit Improved Signal Interpreter Advanced Signal Interpreter Actuator Array > --- WEAPON (2) ------- Powered Hammer Spear > --- INVENTORY (25) --- Backup Propulsion I Backup Propulsion I Gravmag Array Advanced Terrain Scanner Advanced ECM Suite Phase Shifter Relay Coupler [Grunt] (25) Heavy Ion Cannon Peak State ------------ > --- POWER ------------ Cooled Deuterium Engine > --- PROPULSION ------- Gravmag System Improved Gravmag System Improved Gravmag System Improved Gravmag System Improved Gravmag System Surge Thruster > --- UTILITY ---------- Improved Signal Interpreter Improved Terrain Scanner Seismic Detector System Restoration Module > --- WEAPON ----------- Chainsword > --- INVENTORY -------- Light Nuclear Core Hover Unit Improved Terrain Scanner Advanced ECM Suite [Rating: 48] Favorites ----------- Power Light Nuclear Core Engine Ion Engine Power Core Light Nuclear Core Reactor Particle Reactor Propulsion Light Treads Treads Light Treads Wheel Armored Huge Wheel Hover Unit Combat Airjet Flight Unit Surge Thruster Utility Seismic Detector Device Seismic Detector Storage Large Storage Unit Processor Melee Analysis Suite Weapon Light Assault Rifle Energy Gun Small Laser Energy Cannon Ion Cannon Ballistic Gun Light Assault Rifle Impact Weapon Heavy Mace Slashing Weapon Chainsword Piercing Weapon Spear Build | -11 -10 -9 -9 -9 -8 -8 -7 -6 -6 -6 ------- Run | Yrd Mat Mat Min Exi Min Mat Fac Fac Gar Fac Slots Evolved 8 | . . 2 . . . 2 2 2 . . Power . | . . . . . . . . . . . Propulsion 4 | . . . . . . 2 . 2 . . Utility 4 | . . 2 . . . . 2 . . . Weapon . | . . . . . . . . . . . Parts Attached 69 | 8 1 2 . . . 12 23 8 6 9 Power 14 | 2 . 1 . . . 3 7 . 1 . Engine 7 | 2 . . . . . 1 4 . . . Core 6 | . . 1 . . . 2 3 . . . Reactor 1 | . . . . . . . . . 1 . Propulsion 25 | 2 . . . . . 4 6 8 3 2 Treads 2 | 2 . . . . . . . . . . Leg . | . . . . . . . . . . . Wheel 2 | . . . . . . . . . . 2 Hover 14 | . . . . . . 4 1 8 1 . Flight 7 | . . . . . . . 5 . 2 . Utility 16 | 2 1 . . . . 2 6 . . 5 Device 10 | 1 . . . . . 1 5 . . 3 Storage 3 | 1 1 . . . . . . . . 1 Processor 3 | . . . . . . 1 1 . . 1 Hackware . | . . . . . . . . . . . Protection . | . . . . . . . . . . . Artifact . | . . . . . . . . . . . Weapon 14 | 2 . 1 . . . 3 4 . 2 2 Energy Gun 3 | . . 1 . . . . . . 2 . Energy Cannon 2 | . . . . . . 1 1 . . . Ballistic Gun 4 | 2 . . . . . 1 1 . . . Ballistic Cannon . | . . . . . . . . . . . Launcher . | . . . . . . . . . . . Special Weapon . | . . . . . . . . . . . Impact Weapon 2 | . . . . . . 1 . . . 1 Slashing Weapon 2 | . . . . . . . 2 . . . Piercing Weapon 1 | . . . . . . . . . . 1 Special Melee Weapon . | . . . . . . . . . . . Unidentified Prototypes 4 | . . . . . . 1 3 . . . Parts Lost 31 | . . 1 . . . . 14 6 10 . Power 5 | . . . . . . . 3 . 2 . Propulsion 15 | . . . . . . . 5 4 6 . Utility 6 | . . . . . . . 3 2 1 . Weapon 5 | . . 1 . . . . 3 . 1 . Highest Loss Streak 9 | . . 1 . . . . 9 6 9 . To Critical Strikes 1 | . . . . . . . 1 . . . Average Backups 7 | 3 7 7 9 10 10 7 8 4 4 5 Power . | . 1 1 1 1 1 1 . 1 1 . Propulsion 3 | 1 2 2 5 6 6 2 3 1 . 1 Utility 2 | . 2 2 2 2 2 1 3 2 2 3 Weapon 1 | . 2 1 1 1 1 2 1 . . . Tool/Special . | . . . . . . . . . . . Unused Backups 14 | . 1 . . . . 2 3 . . 8 Power . | . . . . . . . . . . . Propulsion 6 | . . . . . . 1 2 . . 3 Utility 4 | . . . . . . . . . . 4 Weapon 4 | . 1 . . . . 1 1 . . 1 Tool/Special . | . . . . . . . . . . . Average Slot Usage (%) 75 | . 100 76 77 77 77 89 69 75 45 30 Engine 2 | . 14 7 . . . . 1 5 . . Core 5 | . . 3 11 11 11 8 5 . . . Treads 10 | . 28 22 22 22 22 . . . . . Hover 11 | . . . . . . 33 18 24 16 . Flight 2 | . . . . . . . 6 11 . 2 Device 12 | . 14 11 11 11 11 17 10 19 4 . Storage 7 | . 14 11 11 11 11 9 5 . . 3 Processor 4 | . . . . . . 8 6 6 6 11 Energy Gun 3 | . . 4 11 11 11 . . . 3 . Energy Cannon 1 | . . . . . . 1 3 . . . Ballistic Gun 7 | . 28 16 11 11 11 1 1 . . . Impact Weapon 2 | . . . . . . 8 3 . . 1 Slashing Weapon 1 | . . . . . . . 2 6 4 . Peak Build Rating 48 | 7 8 10 11 11 11 34 37 48 48 39 Average Rating 20 | 5 7 7 10 11 11 27 28 42 35 22 On Entrance 15 | . 7 7 10 11 11 11 32 33 36 7 Naked Turns . | . . . . . . . . . . . Heaviest Build 90 | 13 28 28 28 28 28 36 41 17 28 90 Greatest Support 56 | 40 40 40 40 40 40 38 38 55 40 56 Greatest Overweight (x) 7 | . . . . . . 1 7 . 7 3 Average Overweight (x) . | . . . . . . . . . . . Largest Inventory Capacity 25 | 8 15 15 15 15 15 15 15 5 5 25 Average Capacity 12 | 7 11 15 15 15 15 15 12 5 5 16 Most Carried 13 | 7 8 8 10 10 12 12 13 5 5 9 Average Carried 7 | 3 7 7 9 10 10 6 8 4 3 5 Final Capacity 25 | 8 15 15 15 15 15 15 5 5 5 25 Final Carried 12 | 7 7 8 10 10 12 9 5 3 3 9 Class Distribution -------------------- 56% | Mutant 21% | Scavenger-Scout 12% | Scout Dominant Class ---------------- Mutant | -10/Materials Mutant | -9/Materials Mutant | -9/Mines Mutant | -9/Exiles Mutant | -8/Mines Scavenger-Scout | -8/Materials Scavenger-Scout | -7/Factory Scout | -6/Factory Scout | -6/Garrison Mutant | -6/Factory Resources | -11 -10 -9 -9 -9 -8 -8 -7 -6 -6 -6 ----------- Run | Yrd Mat Mat Min Exi Min Mat Fac Fac Gar Fac Matter Collected 1083 | 342 14 42 11 . . 160 347 140 25 2 Remotely . | . . . . . . . . . . . Salvage Created 1868 | 175 130 144 147 . 4 170 659 211 228 . Parts 92 | 13 16 7 4 . 2 4 23 7 16 . Haulers Intercepted 2 | . . . . . . 1 1 . . . Recyclers Shooed 3 | . . . . . 1 . 2 . . . Parts Field Recycled . | . . . . . . . . . . . Retrieved Matter . | . . . . . . . . . . . Parts Self-Destructed . | . . . . . . . . . . . Prevented . | . . . . . . . . . . . Kills | -11 -10 -9 -9 -9 -8 -8 -7 -6 -6 -6 ------- Run | Yrd Mat Mat Min Exi Min Mat Fac Fac Gar Fac Combat Hostiles Destroyed 27 | . 5 3 1 . . 2 9 1 6 . Melee 6 | . . . . . . 1 2 1 2 . Guns 14 | . 5 3 1 . . . 1 . 4 . Cannons 2 | . . . . . . . 2 . . . Classes Destroyed 13 | 3 2 1 1 . . 2 3 . 1 . Worker 3 | 1 . . . . . 1 1 . . . Tunneler 5 | 4 . . . . 1 . . . . . Hauler 2 | . . . . . . 1 1 . . . Recycler 6 | 1 . . 1 . . . 3 1 . . Operator 1 | . . . . . . . 1 . . . Swarmer 8 | . 3 . . . . . 5 . . . Cutter 3 | . . . . . . . . . 3 . Grunt 6 | . 2 2 . . . . . . 2 . Brawler 1 | . . . . . . . 1 . . . Duelist 2 | . . . 1 . . . 1 . . . Sentry 4 | . . 1 . . . 1 1 1 . . Hunter 1 | . . . . . . 1 . . . . Programmer 2 | . . . . . . . 1 . 1 . Best Kill Streak 6 | 2 3 2 2 . 1 2 6 1 3 . Combat Bots Only 6 | . 3 2 1 . . 1 6 1 3 . Max Kills in Single Turn 1 | 1 1 1 1 . 1 1 1 1 1 . Gunslinging . | . . . . . . . . . . . Exploded . | . . . . . . . . . . . Melee 1 | . . . . . . 1 1 1 1 . Uniques/NPCs Destroyed . | . . . . . . . . . . . Combat | -11 -10 -9 -9 -9 -8 -8 -7 -6 -6 -6 -------- Run | Yrd Mat Mat Min Exi Min Mat Fac Fac Gar Fac Hostile Shots Fired 386 | . 12 14 2 . . 12 137 90 102 17 Missed 116 | . 3 4 . . . 4 34 36 33 2 Hits 270 | . 9 10 2 . . 8 103 54 69 15 Melee 17 | . . . 2 . . . 11 . 4 . Projectile 253 | . 9 10 . . . 8 92 54 65 15 AOE 1 | . . . . . . . . . 1 . Critical Strikes 15 | . . 1 . . . 2 6 . 6 . Part Disruptions 1 | . . . . . . . . . . 1 Damage Taken 4117 | . 121 140 66 . . 126 1515 504 1199 446 Core 1331 | . 18 45 . . . 63 324 148 596 137 Absorbed by Shields . | . . . . . . . . . . . Regen/Repaired (Parts) 30 | . . . . . . 30 . . . . Core Remaining (%) 84 | 100 92 . . . 88 88 53 . . . Volleys Fired 95 | 31 7 11 11 . . 1 27 . 7 . Largest 2 | 2 2 2 2 . . 1 1 . 2 . Hottest 188 | 40 40 60 60 . . 25 30 . 188 . Shots Fired 156 | 62 14 22 22 . . 1 27 . 8 . Gun 146 | 62 14 22 22 . . 1 17 . 8 . Cannon 10 | . . . . . . . 10 . . . Launcher . | . . . . . . . . . . . Special . | . . . . . . . . . . . Kinetic 122 | 62 14 17 11 . . 1 17 . . . Thermal 34 | . . 5 11 . . . 10 . 8 . Explosive . | . . . . . . . . . . . Electromagnetic . | . . . . . . . . . . . Robot Hit Streak 11 | 7 11 6 5 . . . 9 . 3 . Robot Miss Streak 4 | 2 4 2 2 . . . 2 . 1 . Penetration Max . | . . . . . . . . . . . Secondary Targets 1 | . 1 . . . . . . . . . Max Gunslinging Chain 1 | . 1 . . . . . . . . . Shots Hit Robots 146 | 40 8 15 15 . . 4 44 7 13 . Core Hits 53 | 11 7 8 5 . . . 12 2 8 . Critical Kills 2 | 1 1 . . . . . . . . . Critical Parts Destroyed 4 | . . 1 . . . 2 1 . . . Critical Strikes 10 | 1 1 1 . . . 2 3 2 . . Destroy 3 | 1 1 1 . . . . . . . . Smash 3 | . . . . . . 2 1 . . . Sever 4 | . . . . . . . 2 2 . . Melee Attacks 72 | . . . . . . 8 42 9 13 . Impact 28 | . . . . . . 8 20 . . . Slashing 44 | . . . . . . . 22 9 13 . Piercing . | . . . . . . . . . . . Sneak Attacks 9 | . . . . . . 2 6 1 . . Combat Hostiles . | . . . . . . . . . . . Follow-up Attacks . | . . . . . . . . . . . Damage Inflicted 3399 | 326 64 159 150 . 7 250 1700 294 449 . Guns 1075 | 326 64 159 150 . . . 232 . 144 . Cannons 181 | . . . . . . . 181 . . . Explosions . | . . . . . . . . . . . Melee 2136 | . . . . . . 250 1287 294 305 . Ramming 7 | . . . . . 7 . . . . . Kinetic 800 | 326 64 116 62 . . . 232 . . . Thermal 456 | . . 43 88 . . . 181 . 144 . Explosive . | . . . . . . . . . . . Electromagnetic . | . . . . . . . . . . . Impact 987 | . . . . . . 250 737 . . . Slashing 1149 | . . . . . . . 550 294 305 . Piercing . | . . . . . . . . . . . Highest Corruption 9 | . . . . . . . 9 . . 1 Average Corruption 7 | . . . . . . . 8 . . 1 Corruption Purged 1 | . . . . . . . 1 . . . Corruption Blocked . | . . . . . . . . . . . Effects 11 | . . . . . . . 10 . . 1 Message Errors 3 | . . . . . . . 3 . . . Matter Fused 3 | . . . . . . . 3 . . . Heat Flow Errors 1 | . . . . . . . 1 . . . Energy Discharges 1 | . . . . . . . 1 . . . Data Loss (minor) 1 | . . . . . . . 1 . . . Data Loss (major) 1 | . . . . . . . 1 . . . Alerts 1 | . . . . . . . . . . 1 Overload Shots . | . . . . . . . . . . . Overflow Damage 710 | . . . . . . 195 471 44 . . Projectiles 57 | . . . . . . . 57 . . . Explosions . | . . . . . . . . . . . Melee 653 | . . . . . . 195 414 44 . . Knockbacks 7 | . . . . . 1 . 6 . . . Impact 6 | . . . . . 1 . 5 . . . Kinetic . | . . . . . . . . . . . Secondary 1 | . . . . . . . 1 . . . Self-Inflicted Damage . | . . . . . . . . . . . Shots . | . . . . . . . . . . . Rammed 1 | . . . . . 1 . . . . . Targets Rammed 2 | . . . . . 2 . . . . . Kicked . | . . . . . . . . . . . Crushed 1 | . . . . . 1 . . . . . Highest Temperature 265 | . . 29 36 . . 11 265 3 152 . Average Temperature 50 | . . 15 18 . . 5 162 3 54 . Received Heat Transfer 516 | . . 90 . . . 27 120 126 117 36 Siege Activations . | . . . . . . . . . . . Martial Activations . | . . . . . . . . . . . Shielding Activations . | . . . . . . . . . . . Robots Disrupted . | . . . . . . . . . . . Combat Hostiles . | . . . . . . . . . . . Robots Corrupted 8 | . . . . . . 2 6 . . . Combat Hostiles 5 | . . . . . . 1 4 . . . Parts Fried 11 | . . . . . . 6 5 . . . Impact Corruptions 19 | . . . . . . 6 13 . . . Robots Melted . | . . . . . . . . . . . Combat Hostiles . | . . . . . . . . . . . Parts Melted 1 | . . 1 . . . . . . . . Heat Transferred 707 | . . 100 200 . . . 222 . 185 . Parts Sabotaged . | . . . . . . . . . . . Parts Stolen . | . . . . . . . . . . . Parts Stripped . | . . . . . . . . . . . Power Chain Reactions . | . . . . . . . . . . . Alert | -11 -10 -9 -9 -9 -8 -8 -7 -6 -6 -6 ------- Run | Yrd Mat Mat Min Exi Min Mat Fac Fac Gar Fac Maximum Alert Level . | . . . . . . . . . . . Low Security (%) 100 | 100 100 100 100 . 100 100 100 100 100 100 Level 1 . | . . . . . . . . . . . Level 2 . | . . . . . . . . . . . Level 3 . | . . . . . . . . . . . Level 4 . | . . . . . . . . . . . Level 5 . | . . . . . . . . . . . High Security . | . . . . . . . . . . . Max Security . | . . . . . . . . . . . Peak Influence 155 | 5 70 50 30 . 5 46 67 30 155 95 Initial 70 | . 3 13 . . . . . . . 70 Average 13 | . 11 13 2 . . 6 14 . 62 56 Influence Increases 977 | 30 110 80 35 . 5 78 292 47 225 75 Destroy 0b10 Robot/C 540 | . 100 60 20 . . 40 180 20 120 . Destroy 0b10 Robot/NC 85 | 30 . . 5 . 5 10 30 5 . . Destroy Leader 134 | . 10 20 10 . . 22 42 10 20 . Successful Hack 13 | . . . . . . 2 . 11 . . Anti-Garrison Action 50 | . . . . . . . . . 50 . Destroy Structure 20 | . . . . . . 4 10 1 5 . Partial Spotted 15 | . . . . . . . 15 . . . Lose Combat Pursuer 120 | . . . . . . . 15 . 30 75 Influence Decreases 952 | 25 83 112 35 . 5 78 292 47 90 185 Entered New Map 86 | . 2 19 . . . . . . . 65 Time Decay 624 | 25 81 83 35 . 5 78 170 27 . 120 Lost Part 242 | . . 10 . . . . 122 20 90 . Squads Dispatched 8 | . 1 . . . . . 6 1 . . Investigation 2 | . 1 . . . . . . 1 . . Extermination 2 | . . . . . . . 2 . . . Reinforcement 1 | . . . . . . . 1 . . . Assault . | . . . . . . . . . . . Garrison 3 | . . . . . . . 3 . . . Intercept . | . . . . . . . . . . . Searches Triggered . | . . . . . . . . . . . Construction Impeded . | . . . . . . . . . . . Haulers Reinforced . | . . . . . . . . . . . Active Scanning Responses . | . . . . . . . . . . . Cargo Convoy Interrupts . | . . . . . . . . . . . Stealth | -11 -10 -9 -9 -9 -8 -8 -7 -6 -6 -6 --------- Run | Yrd Mat Mat Min Exi Min Mat Fac Fac Gar Fac Distress Signals 6 | . 2 3 . . . 1 . . . . Communications Jammed . | . . . . . . . . . . . Distress Signals . | . . . . . . . . . . . Times Spotted 60 | . 8 8 3 . . 3 15 3 15 5 Peak Tracking Total 8 | . 4 3 2 . . 3 4 3 8 5 Tactical Retreats 4 | . . . . . . . 1 . 1 2 Traps | -11 -10 -9 -9 -9 -8 -8 -7 -6 -6 -6 ------- Run | Yrd Mat Mat Min Exi Min Mat Fac Fac Gar Fac Traps Triggered 10 | . 2 . . . . 4 1 1 . 2 Indirectly . | . . . . . . . . . . . Trap Hack Attempts . | . . . . . . . . . . . Triggered . | . . . . . . . . . . . Disarmed . | . . . . . . . . . . . Reprogrammed . | . . . . . . . . . . . Reused . | . . . . . . . . . . . Traps Extracted . | . . . . . . . . . . . Installed . | . . . . . . . . . . . Triggered . | . . . . . . . . . . . Machines | -11 -10 -9 -9 -9 -8 -8 -7 -6 -6 -6 ---------- Run | Yrd Mat Mat Min Exi Min Mat Fac Fac Gar Fac Machines Disabled 1 | . . . . . . . . . 1 . Max in Single Turn 1 | . . . . . . . . . 1 . Garrison Relay 1 | . . . . . . . . . 1 . Machines Repaired . | . . . . . . . . . . . Machines Dismantled . | . . . . . . . . . . . Machines Sabotaged . | . . . . . . . . . . . Overloaded Fab Kills . | . . . . . . . . . . . Hacking | -11 -10 -9 -9 -9 -8 -8 -7 -6 -6 -6 --------- Run | Yrd Mat Mat Min Exi Min Mat Fac Fac Gar Fac Machines Accessed 7 | . . . . 1 . 2 . 3 . 1 Terminals 1 | . . . . . . . . 1 . . Fabricators 2 | . . . . . . . . 1 . 1 Repair Stations 1 | . . . . . . 1 . . . . Recycling Units . | . . . . . . . . . . . Scanalyzers 1 | . . . . . . 1 . . . . Garrison Access 1 | . . . . . . . . 1 . . Total Hacks 19 | . . . . 1 . 9 . 8 . 1 Successful 9 | . . . . 1 . 5 . 3 . . Failed 10 | . . . . . . 4 . 5 . 1 Catastrophic . | . . . . . . . . . . . Database Lockouts . | . . . . . . . . . . . Manual 3 | . . . . 1 . . . 2 . . Terminals 5 | . . . . . . . . 5 . . Fabricators 2 | . . . . . . . . 1 . 1 Repair Stations 4 | . . . . . . 4 . . . . Recycling Units . | . . . . . . . . . . . Scanalyzers 5 | . . . . . . 5 . . . . Garrison Access 2 | . . . . . . . . 2 . . Terminal Hacks 3 | . . . . 1 . . . 2 . . Transport Status 1 | . . . . . . . . 1 . . Hauler Manifests 1 | . . . . . . . . 1 . . Proto ID Catalog 1 | . . . . 1 . . . . . . Fabricator Hacks . | . . . . . . . . . . . Repair Station Hacks 2 | . . . . . . 2 . . . . Scan Component 1 | . . . . . . 1 . . . . Repair 1 | . . . . . . 1 . . . . Recycling Unit Hacks . | . . . . . . . . . . . Scanalyzer 3 | . . . . . . 3 . . . . Insert Component 2 | . . . . . . 2 . . . . Analyze 1 | . . . . . . 1 . . . . Garrison Access Hacks 1 | . . . . . . . . 1 . . Unlock Access 1 | . . . . . . . . 1 . . Unauthorized Hacks . | . . . . . . . . . . . Terminals . | . . . . . . . . . . . Fabricators . | . . . . . . . . . . . Repair Stations . | . . . . . . . . . . . Recycling Units . | . . . . . . . . . . . Scanalyzers . | . . . . . . . . . . . Garrison Access . | . . . . . . . . . . . Data Cores Recovered 1 | . . . . . . . 1 . . . Used . | . . . . . . . . . . . Hacking Detections 5 | . . . . . . 1 . 3 . 1 Full Trace Events 1 | . . . . . . 1 . . . . Feedback Events . | . . . . . . . . . . . Feedback Blocked . | . . . . . . . . . . . Robot Schematics Acquired . | . . . . . . . . . . . Robots Built . | . . . . . . . . . . . Authchips . | . . . . . . . . . . . Time . | . . . . . . . . . . . Total Robot Build Rating . | . . . . . . . . . . . Part Schematics Acquired 1 | . . . . . . 1 . . . . Parts Built . | . . . . . . . . . . . Authchips . | . . . . . . . . . . . Time . | . . . . . . . . . . . Total Part Build Rating . | . . . . . . . . . . . Parts Repaired 1 | . . . . . . 1 . . . . Time 70 | . . . . . . 70 . . . . Parts Recycled . | . . . . . . . . . . . Recycled Matter . | . . . . . . . . . . . Retrieved Matter . | . . . . . . . . . . . Retrieved Components . | . . . . . . . . . . . Parts Scanalyzed 2 | . . . . . . 2 . . . . Part Schematics Acquired 1 | . . . . . . 1 . . . . Parts Damaged 1 | . . . . . . 1 . . . . Bothacking | -11 -10 -9 -9 -9 -8 -8 -7 -6 -6 -6 ------------ Run | Yrd Mat Mat Min Exi Min Mat Fac Fac Gar Fac Used RIF Installer . | . . . . . . . . . . . Robots Hacked . | . . . . . . . . . . . Non-combat . | . . . . . . . . . . . Combat . | . . . . . . . . . . . Robot Hacks Applied . | . . . . . . . . . . . Relay Couplers Released 3 | . . . . . . . . . 3 . Machine Destruction 3 | . . . . . . . . . 3 . Fabnet Peak Effective % . | . . . . . . . . . . . Robots Rewired . | . . . . . . . . . . . Allies Hacked . | . . . . . . . . . . . Hacks Repelled . | . . . . . . . . . . . Allies | -11 -10 -9 -9 -9 -8 -8 -7 -6 -6 -6 -------- Run | Yrd Mat Mat Min Exi Min Mat Fac Fac Gar Fac Total Allies . | . . . . . . . . . . . Largest Group . | . . . . . . . . . . . Highest-Rated Group . | . . . . . . . . . . . Highest-Rated Ally . | . . . . . . . . . . . Initial Warlord ECA Mod 1 | . . . . . . . . . . 1 Total Orders . | . . . . . . . . . . . Ally Attacks . | . . . . . . . . . . . Total Damage . | . . . . . . . . . . . Kills . | . . . . . . . . . . . Allies Corrupted . | . . . . . . . . . . . Allies Melted . | . . . . . . . . . . . Intel | -11 -10 -9 -9 -9 -8 -8 -7 -6 -6 -6 ------- Run | Yrd Mat Mat Min Exi Min Mat Fac Fac Gar Fac Active Infowar (turns) 3847 | 42 405 264 367 672 214 694 697 320 169 3 Terrain 1730 | . . . . . . 678 560 320 169 3 Seismic 3659 | 42 405 264 367 672 214 694 697 304 . . Robot Analysis Total . | . . . . . . . . . . . Derelict Logs Recovered 1 | . . . 1 . . . . . . . Drone Launches . | . . . . . . . . . . . Drone Recoveries . | . . . . . . . . . . . Exploration | -11 -10 -9 -9 -9 -8 -8 -7 -6 -6 -6 ------------- Run | Yrd Mat Mat Min Exi Min Mat Fac Fac Gar Fac Turns Passed 4521 | 230 405 264 367 672 214 694 898 320 211 246 Spaces Moved 3568 | 85 230 115 178 421 131 378 976 482 234 338 Core 12 | 4 . . . . . . 2 . 6 . Treads 1156 | 81 230 115 178 421 131 . . . . . Legs . | . . . . . . . . . . . Wheels 93 | . . . . . . . . . . 93 Hover 1247 | . . . . . . 378 521 171 177 . Flight 1060 | . . . . . . . 453 311 51 245 Fastest Speed 23 | 50 160 160 160 160 160 59 26 23 32 35 Average Speed 86 | 154 160 160 160 160 160 64 51 29 54 62 Slowest Speed 400 | 160 160 160 160 160 160 121 400 56 400 145 Overloaded Moves 11 | . . . . . . . . . 11 . Propulsion Burnouts . | . . . . . . . . . . . Robots Hopped 3 | . . . . . . . 3 . . . Potential Cave-ins . | . . . . . . . . . . . Cave-ins Triggered . | . . . . . . . . . . . Exploration Rate (%) 31 | 6 52 11 49 89 35 26 18 9 36 11 Regions Visited 10 Branch Regions 3 Pre-discovered Areas . | . . . . . . . . . . . Known Exits Taken 2 | . . . . . . . 1 1 . . Unknown Exits Taken 7 | 1 1 1 1 1 1 1 . . . . Scrap Searched 1 | . . . . . 1 . . . . . Spaces Dug 13 | . . . . . . 4 8 1 . . Terrain Destroyed 15 | . . . . . . 4 10 1 . . Melee 13 | . . . . . . 4 8 1 . . Projectile 2 | . . . . . . . 2 . . . AOE . | . . . . . . . . . . . Terrain Rammed . | . . . . . . . . . . . Walls Destroyed . | . . . . . . . . . . . Machines Disabled . | . . . . . . . . . . . Actions | -11 -10 -9 -9 -9 -8 -8 -7 -6 -6 -6 --------- Run | Yrd Mat Mat Min Exi Min Mat Fac Fac Gar Fac Total 4745 | 130 257 177 241 420 134 811 1272 646 285 372 Wait 831 | 1 15 47 49 . . 388 165 134 20 12 Move 3552 | 84 229 114 177 420 130 377 969 481 233 338 Hop 3 | . . . . . . . 3 . . . Pick Up 44 | 6 2 2 2 . 2 5 11 5 2 7 Fast Attach 40 | 7 . . . . . 9 9 4 4 7 Attach 28 | . . 1 . . . 7 11 5 2 2 Detach 5 | . . . . . . 3 1 . . 1 Swap 19 | 1 1 1 . . . 6 6 1 3 . Drop 34 | . 3 1 . . . 7 10 7 1 5 Fire 95 | 31 7 11 11 . . 1 27 . 7 . Melee 72 | . . . . . . 8 42 9 13 . Ram . | . . . . . . . . . . . Kick . | . . . . . . . . . . . Crush 2 | . . . . . 2 . . . . . Escape Stasis 18 | . . . . . . . 18 . . . Rewire 2 | . . . 2 . . . . . . . Trap . | . . . . . . . . . . . Miscellaneous . | . . . . . . . . . . . Route ------- -11/Scrapyard -10/Materials (discovered 2 exits: [*Mat x2]) -9/Materials -9/Mines (discovered 2 exits: *Exi / [*Zio]) -9/Exiles -8/Mines -8/Materials -7/Factory -6/Factory (discovered 2 exits: *Fac / Gar) -6/Garrison -6/Factory History --------- Turn | Location | Event 10 | -11/Scrapyard | Discovered new exit (range 16) 231 | -11/Scrapyard | Entered Materials 308 | -10/Materials | Build established: Mutant 334 | -10/Materials | Discovered new exit (range 16) 473 | -10/Materials | Discovered new exit (range 16) 636 | -10/Materials | Entered another Materials area 636 | -9/Materials | Evolved 2 slots: Utility x2 828 | -9/Materials | Met 8R-AWN 876 | -9/Materials | Discovered new exit (range 10) 900 | -9/Materials | Entered Mines 901 | -9/Mines | Assembled infested the area 901 | -9/Mines | Followed 8R-AWN into the Mines 906 | -9/Mines | Assisted by a Guerilla fighting off Assembled 1012 | -9/Mines | Learned Materials emergency access door positions 1124 | -9/Mines | A Derelict revealed a hidden shortcut to a safe place 1261 | -9/Mines | Discovered new exit (range 5) 1267 | -9/Mines | Entered Exiles 1306 | -9/Exiles | Welcomed by 8R-AWN 1333 | -9/Exiles | Met EX-HEX 1394 | -9/Exiles | Met EX-DEC 1437 | -9/Exiles | Met EX-BIN 1455 | -9/Exiles | Aligned with FarCom system 1456 | -9/Exiles | Given EX-Vault access code 1493 | -9/Exiles | Opened EX-Vault 1554 | -9/Exiles | Warned to stay clear of 0b10 Research branches 1673 | -9/Exiles | Visited The Gauntlet 1922 | -9/Exiles | Discovered new exit (range 14) 1939 | -9/Exiles | Entered Mines 2145 | -8/Mines | Discovered new exit (range 3) 2153 | -8/Mines | Entered Materials 2153 | -8/Materials | Evolved 2 slots: Propulsion x2 2309 | -8/Materials | Repaired Broken Cmb. Airjet 2616 | -8/Materials | Build established: Scavenger-Scout 2774 | -8/Materials | Discovered new exit (range 16) 2847 | -8/Materials | Entered Factory 2847 | -7/Factory | Evolved 2 slots: Utility x2 3306 | -7/Factory | Garrison activated, responded to threat 3381 | -7/Factory | Lost 9 parts (2p3n2u2w) 3548 | -7/Factory | Lost 5 parts (1p2n1u1w) 3738 | -7/Factory | Discovered new exit (range 9) 3745 | -7/Factory | Identified exit to Factory 3745 | -7/Factory | Entered another Factory area 3745 | -6/Factory | Evolved 2 slots: Propulsion x2 3777 | -6/Factory | Discovered new exit (range 4) 3778 | -6/Factory | Identified exit to Factory 3940 | -6/Factory | Build established: Scout 4065 | -6/Factory | Identified exit to Garrison 4065 | -6/Factory | Entered Garrison 4087 | -6/Garrison | Lost 6 parts (4n2u) 4125 | -6/Garrison | Triggered checkpoint 4172 | -6/Garrison | Garrison Relay disabled 4245 | -6/Garrison | Core integrity fell below 50% 4258 | -6/Garrison | Core integrity fell below 20% 4271 | -6/Garrison | Discovered new exit (range 15) 4276 | -6/Garrison | Identified exit to Factory 4276 | -6/Garrison | Entered Factory 4291 | -6/Factory | Lost 9 parts (2p5n1u1w) 4503 | -6/Factory | Spotted B-75 Beast 4522 | -6/Factory | Destroyed by B-75 Beast with Heavy Plasma Cannon Last Messages --------------- 04409_ Acquired Backup Propulsion I. 04417_ U-05 Engineer lays Concrete. 04420_ U-05 Engineer builds a Door. 04420_ Triggered Tesla Bomb Trap. 04420_ A bubble of electromagnetic force engulfs the area. 04420_ Tesla Bomb Trap short circuited. 04420_ Door malfunctions. 04420_ A bubble of electromagnetic force engulfs the area. 04420_ U-05 Engineer destroyed. 04431_ Acquired Spear. 04439_ U-05 Engineer lays Concrete. 04448_ ALERT: Security rotation in progress. 04455_ System corrupted: IFF burst signal emitted. 04467_ Acquired Gravmag Array. 04471_ Acquired Powered Hammer. 04492_ Acquired Actuator Array. 04506_ Knocked back. 04506_ Acquired 2 matter. 04515_ Knocked back. 04521_ Dropped Arm. Huge Wheel. Map ----- +----------------------------------------------------+ | | | | | | | | | | | | | | | | | | | | | | | | | ????????????????????###########??????????????????? | | ????????????????????# #??????????????????? | | ????????????????????# #??????????????????? | | ????????############# """ """ #??????????????????? | | ????????# !# + """ """ #??????????????????? | | ????????# # # """ """ #??????????????????? | | ????????# ! # # % ###????????????????? | | ????????# !# # % + #????????????????? | | ????????# # # # #????????????????? | | ????????# ! # #####;#;+## ########?????????? | | ????????+ ! # ^ +????????? | | ????????# # #####% #????????????? | | ????????#####/##### #??## % !! #????????????? | | ??########*!^ #??#;@ !! *#????????????? | | ??# #%^! !#??##= ????????? | | ??# [[#!%| =] #???# " " ????????? | | ??# "[[ =*! ]] #???BB ""G"" ????????? | | ??# ! [#!^ ]] #?? BB/ ???????? | | ??# """!# #??## "??????? | | ??# # #???# ####+#### "??????? | | ??##+##### #???#+#####???????# "??????? | | ?????##### #?????????????????# ???? ?? | | ???? """ ^ #?????????????????# """ ""?? | | ?????"T" #?????????????????# """ """ | | ? """ """ #?????????????????# """ """ | | ? """ """ #?????????######### | | ?# """ """ ]]=#????????? # | | ?# ]]=#????#???"" """" # | | ?# """^""" """ ] ###??# """" """" # | | ?# """ """ """ #??# """" """" # | | ?# """ """ """ #### """" """" # """" ""? | | ?# + """" """" + """" """ | | ???? """ #### """" """" # """" """ | | ???? """ !! #??# """" """" # | | ???? """ !!! #??# # """" """ | | ??# !!! #??# ! # """" """ | | ??# #??#! ! # """" """ | | ??# #??# # | +----------------------------------------------------+ Best States ------------- Heat Dissipation 37 Energy Generation 23 Energy Capacity 340 Matter Stores 300 Matter Capacity 300 Sight Range 16 Terrain Scan Range 16 Terrain Scan Density 10 Evasion (%) 65 Melee Accuracy 5 Recoil Reduction 2 Item Schematics ----------------- Cmb. Airjet | -8/Materials | Scanalyzed Robot Schematics ------------------ None Fabricated ------------ Nothing Repaired ---------- Cmb. Airjet | 76% | -8/Materials | Broken Alien Tech Used ----------------- None Achievements -------------- None Challenges ------------ None Game ------ Seed ScrapoidTargetDrive Manual? 0 Play Time 00:35:10 Cumulative 146.1 hours Start 2025.07.11 @ 12:46:40 End 2025.07.11 @ 13:21:58 Sessions 1 Manual Loads 0 Difficulty Rogue Special Mode None Game No. 375 Rogue 375 Adventurer 0 Explorer 0 Win Type - Total 4 Types 3/0/1/0/0/0/0/0/0/0 Lore% 68 Gallery% 58 Achievement% 48 Wizard Run 0 Options --------- Layout 0 ASCII 0 Keyboard 0 Movement Numpad Keybinds 0 Fullscreen 2 Font 18/Terminus Map View 76x50 Zoom Use 0% Tactical HUD 1 Map Filters NONE Filters NONE Steam 1 RUN: 7660b150-d43e-423e-be68-67440690e9e3